[Event "*** MasterClass Titled Tuesday Blitz"]
[Site "Chess.com"]
[Date "2017.11.07"]
[Round "2"]
[White "Aygehovit1992"]
[Black "Patov"]
[Result "1-0"]
[WhiteElo "2522"]
[BlackElo "2333"]
[TimeControl "180+2"]
[EndTime "14:30:22 PST"]
[Termination "Aygehovit1992 won on time"]

1. e4 {[%clk 0:03:01.9]} 1... e6 {[%clk 0:03:00.5]} 2. d4 {[%clk 0:03:02.6]}
2... d5 {[%clk 0:03:01.5]} 3. Nc3 {[%clk 0:03:04.3]} 3... Nf6 {[%clk 0:03:01.7]}
4. e5 {[%clk 0:03:04.7]} 4... Nfd7 {[%clk 0:03:02.3]} 5. f4 {[%clk 0:03:06.1]}
5... c5 {[%clk 0:03:03.6]} 6. Nf3 {[%clk 0:03:07.7]} 6... Nc6 {[%clk 0:03:05.5]}
7. Be3 {[%clk 0:03:09.3]} 7... Be7 {[%clk 0:03:06.7]} 8. a3 {[%clk 0:03:08]}
8... O-O {[%clk 0:03:06.7]} 9. dxc5 {[%clk 0:03:07.9]} 9... Nxc5 {[%clk
0:03:06.8]} 10. b4 {[%clk 0:03:08.3]} 10... Nd7 {[%clk 0:03:05.2]} 11. Bd3
{[%clk 0:03:08.1]} 11... f6 {[%clk 0:03:04]} 12. O-O {[%clk 0:03:02.6]} 12...
fxe5 {[%clk 0:03:04.1]} 13. fxe5 {[%clk 0:02:59.3]} 13... Ndxe5 {[%clk 0:03:01]}
14. Nxe5 {[%clk 0:03:00.2]} 14... Rxf1+ {[%clk 0:02:59.6]} 15. Bxf1 {[%clk
0:02:56.7]} 15... Nxe5 {[%clk 0:03:00.6]} 16. Qh5 {[%clk 0:02:44.6]} 16... Bf6
{[%clk 0:02:48.1]} 17. Re1 {[%clk 0:02:43]} 17... Bd7 {[%clk 0:02:46.7]} 18. Kh1
{[%clk 0:02:40.1]} 18... Be8 {[%clk 0:02:44.2]} 19. Qh3 {[%clk 0:02:38.2]} 19...
Bf7 {[%clk 0:02:39]} 20. Bd4 {[%clk 0:02:38.5]} 20... Ng6 {[%clk 0:02:37.9]} 21.
Ne2 {[%clk 0:02:08.6]} 21... Rc8 {[%clk 0:02:33.1]} 22. c3 {[%clk 0:02:05.2]}
22... b6 {[%clk 0:02:27.3]} 23. Bxf6 {[%clk 0:01:58.7]} 23... Qxf6 {[%clk
0:02:27]} 24. Nd4 {[%clk 0:02:00.3]} 24... Re8 {[%clk 0:02:26.5]} 25. Bb5 {[%clk
0:01:56.9]} 25... Re7 {[%clk 0:02:20.7]} 26. Kg1 {[%clk 0:01:52.8]} 26... h6
{[%clk 0:02:11.4]} 27. Rf1 {[%clk 0:01:49.5]} 27... Qg5 {[%clk 0:01:58.1]} 28.
Qf3 {[%clk 0:01:36.6]} 28... e5 {[%clk 0:01:44.4]} 29. Nf5 {[%clk 0:01:17.7]}
29... Rc7 {[%clk 0:01:34.7]} 30. g3 {[%clk 0:01:10.1]} 30... e4 {[%clk
0:01:29.8]} 31. Qf2 {[%clk 0:01:04.3]} 31... Ne5 {[%clk 0:01:22.1]} 32. Qd4
{[%clk 0:00:17.2]} 32... Nf3+ {[%clk 0:01:19.1]} 33. Rxf3 {[%clk 0:00:18.2]}
33... exf3 {[%clk 0:01:20.9]} 34. Qe5 {[%clk 0:00:11.9]} 34... Rxc3 {[%clk
0:00:46.3]} 35. Ne7+ {[%clk 0:00:09.4]} 35... Kh7 {[%clk 0:00:41.6]} 36. Qxc3
{[%clk 0:00:10.2]} 36... Qxe7 {[%clk 0:00:40.8]} 37. Kf2 {[%clk 0:00:11.5]}
37... Qe4 {[%clk 0:00:33.6]} 38. Bd3 {[%clk 0:00:11.1]} 1-0

[Event "*** MasterClass Titled Tuesday Blitz"]
[Site "Chess.com"]
[Date "2017.11.07"]
[Round "2"]
[White "BergenChessAcademy"]
[Black "Koksik_13"]
[Result "0-1"]
[WhiteElo "1618"]
[BlackElo "1937"]
[TimeControl "180+2"]
[EndTime "14:30:26 PST"]
[Termination "Koksik_13 won by resignation"]

1. d4 {[%clk 0:03:01.5]} 1... e6 {[%clk 0:03:00.8]} 2. c4 {[%clk 0:03:00.5]}
2... d5 {[%clk 0:03:01.9]} 3. Nc3 {[%clk 0:03:01.3]} 3... Nf6 {[%clk 0:03:03.1]}
4. Bg5 {[%clk 0:03:00.4]} 4... Be7 {[%clk 0:03:03.1]} 5. cxd5 {[%clk 0:03:01.1]}
5... exd5 {[%clk 0:03:03.9]} 6. e3 {[%clk 0:03:01.6]} 6... c6 {[%clk 0:03:05.3]}
7. Bd3 {[%clk 0:03:02.1]} 7... Nbd7 {[%clk 0:03:06.4]} 8. Nge2 {[%clk
0:03:02.8]} 8... h6 {[%clk 0:03:05.9]} 9. Bh4 {[%clk 0:03:01.6]} 9... Nh5 {[%clk
0:03:06.6]} 10. Bxe7 {[%clk 0:03:00.8]} 10... Qxe7 {[%clk 0:03:07.8]} 11. Qd2
{[%clk 0:02:57.6]} 11... O-O {[%clk 0:03:07.3]} 12. O-O-O {[%clk 0:02:56.5]}
12... Nhf6 {[%clk 0:03:07.5]} 13. f3 {[%clk 0:02:57.1]} 13... c5 {[%clk
0:03:07.8]} 14. e4 {[%clk 0:02:56.7]} 14... cxd4 {[%clk 0:03:05.6]} 15. Nxd4
{[%clk 0:02:56.9]} 15... Nc5 {[%clk 0:02:55.8]} 16. Nxd5 {[%clk 0:02:55.5]}
16... Nxd5 {[%clk 0:02:56.4]} 17. exd5 {[%clk 0:02:56.6]} 17... Qe5 {[%clk
0:02:31.2]} 18. Kb1 {[%clk 0:02:15.6]} 18... Nxd3 {[%clk 0:02:26.9]} 19. Qxd3
{[%clk 0:02:16.7]} 19... Qxd5 {[%clk 0:02:27.9]} 20. Ka1 {[%clk 0:02:17.5]}
20... Bd7 {[%clk 0:02:17.3]} 21. Rhe1 {[%clk 0:01:45.6]} 21... Rad8 {[%clk
0:02:14.6]} 22. Nb3 {[%clk 0:01:38.8]} 22... Qxd3 {[%clk 0:02:14.6]} 23. Rxd3
{[%clk 0:01:40.4]} 23... Bf5 {[%clk 0:02:11.3]} 24. Rde3 {[%clk 0:01:40.2]}
24... b6 {[%clk 0:02:11.3]} 25. Re7 {[%clk 0:01:31.4]} 25... a5 {[%clk
0:02:11.1]} 26. Nc1 {[%clk 0:01:27.1]} 26... Rd2 {[%clk 0:02:08.7]} 27. R7e2
{[%clk 0:01:26.8]} 27... Rfd8 {[%clk 0:02:09.4]} 28. b3 {[%clk 0:01:27.8]} 28...
b5 {[%clk 0:02:07.3]} 29. Rxd2 {[%clk 0:01:24.8]} 29... Rxd2 {[%clk 0:02:06.4]}
30. Re2 {[%clk 0:01:25.9]} 30... Rd1 {[%clk 0:02:07.4]} 31. Kb2 {[%clk
0:01:26.8]} 31... b4 {[%clk 0:02:08.5]} 32. Rf2 {[%clk 0:01:15.6]} 32... h5
{[%clk 0:02:05.6]} 33. g3 {[%clk 0:01:13.8]} 33... g5 {[%clk 0:02:06.7]} 34. h3
{[%clk 0:01:08.6]} 34... Bxh3 {[%clk 0:01:59.6]} 35. Kc2 {[%clk 0:01:09.2]}
35... Rg1 {[%clk 0:01:58.8]} 36. Ne2 {[%clk 0:01:06.8]} 36... Bf5+ {[%clk
0:01:59.6]} 37. Kd2 {[%clk 0:01:06.7]} 37... Ra1 {[%clk 0:01:41.5]} 38. Nc1
{[%clk 0:01:07.2]} 38... h4 {[%clk 0:01:37.3]} 39. g4 {[%clk 0:01:03.5]} 39...
Bg6 {[%clk 0:01:33.8]} 40. f4 {[%clk 0:01:01]} 40... f6 {[%clk 0:01:34.8]} 41.
f5 {[%clk 0:00:59.1]} 41... Bf7 {[%clk 0:01:26.7]} 42. Kc2 {[%clk 0:00:59.9]}
42... Bd5 {[%clk 0:00:58.1]} 43. Kb2 {[%clk 0:00:57.5]} 43... Rxc1 {[%clk
0:00:56.6]} 44. Kxc1 {[%clk 0:00:58.1]} 44... h3 {[%clk 0:00:57.9]} 45. Rh2
{[%clk 0:00:57.1]} 45... Bg2 {[%clk 0:00:58.6]} 46. Kd2 {[%clk 0:00:58.8]} 46...
Kf7 {[%clk 0:00:48.2]} 47. Kd3 {[%clk 0:01:00.7]} 47... Ke7 {[%clk 0:00:48.8]}
48. Kc4 {[%clk 0:01:02.6]} 48... Kd6 {[%clk 0:00:49.8]} 49. Kb5 {[%clk
0:01:04.5]} 49... Ke5 {[%clk 0:00:50.9]} 50. Kxa5 {[%clk 0:01:02.8]} 50... Kf4
{[%clk 0:00:51.9]} 51. Kxb4 {[%clk 0:01:04.7]} 51... Kg3 {[%clk 0:00:52.8]} 52.
Rxh3+ {[%clk 0:01:04.3]} 52... Kxh3 {[%clk 0:00:49.8]} 53. a4 {[%clk 0:01:06.2]}
53... Kxg4 {[%clk 0:00:50.9]} 54. a5 {[%clk 0:01:07.6]} 54... Kxf5 {[%clk
0:00:52.1]} 55. Kc5 {[%clk 0:01:09.5]} 55... g4 {[%clk 0:00:53.6]} 56. Kd4
{[%clk 0:01:11.4]} 56... g3 {[%clk 0:00:54.1]} 57. b4 {[%clk 0:01:13.1]} 57...
Ba8 {[%clk 0:00:53.2]} 58. Ke3 {[%clk 0:01:15]} 58... Bc6 {[%clk 0:00:51.3]} 59.
b5 {[%clk 0:01:16.8]} 59... Bxb5 {[%clk 0:00:51.3]} 60. Kf3 {[%clk 0:01:18.2]}
60... Kg5 {[%clk 0:00:49.2]} 61. Kxg3 {[%clk 0:01:19.3]} 61... f5 {[%clk
0:00:50.6]} 62. Kf2 {[%clk 0:01:20.8]} 62... f4 {[%clk 0:00:51.7]} 63. Kf3
{[%clk 0:01:22.1]} 63... Bc6+ {[%clk 0:00:52.5]} 64. Kf2 {[%clk 0:01:23]} 64...
Bb7 {[%clk 0:00:53.7]} 65. a6 {[%clk 0:01:24.9]} 65... Bxa6 {[%clk 0:00:54.3]}
66. Kg2 {[%clk 0:01:26.5]} 66... Bb7+ {[%clk 0:00:55.1]} 67. Kf2 {[%clk
0:01:26.8]} 67... Kg4 {[%clk 0:00:56.3]} 68. Kg1 {[%clk 0:01:27.8]} 68... Kg3
{[%clk 0:00:56.8]} 69. Kf1 {[%clk 0:01:28.8]} 69... f3 {[%clk 0:00:57.7]} 70.
Kg1 {[%clk 0:01:30.3]} 70... f2+ {[%clk 0:00:58.8]} 0-1

[Event "*** MasterClass Titled Tuesday Blitz"]
[Site "Chess.com"]
[Date "2017.11.07"]
[Round "2"]
[White "P0ubelle"]
[Black "PenguinPacks"]
[Result "0-1"]
[WhiteElo "2211"]
[BlackElo "2171"]
[TimeControl "180+2"]
[EndTime "14:30:29 PST"]
[Termination "PenguinPacks won by resignation"]

1. e4 {[%clk 0:03:01.9]} 1... e5 {[%clk 0:02:59.7]} 2. Nf3 {[%clk 0:03:02.1]}
2... Nc6 {[%clk 0:02:55.2]} 3. d4 {[%clk 0:03:02.9]} 3... exd4 {[%clk
0:02:55.8]} 4. Nxd4 {[%clk 0:03:03.7]} 4... Nf6 {[%clk 0:02:57.3]} 5. Nxc6
{[%clk 0:03:04.5]} 5... bxc6 {[%clk 0:02:57.4]} 6. e5 {[%clk 0:03:06]} 6... Qe7
{[%clk 0:02:59]} 7. Qe2 {[%clk 0:03:06.8]} 7... Nd5 {[%clk 0:02:59]} 8. c4
{[%clk 0:03:08.2]} 8... Nb6 {[%clk 0:03:00.2]} 9. Nc3 {[%clk 0:03:08.3]} 9... a5
{[%clk 0:02:57.9]} 10. f4 {[%clk 0:02:48.3]} 10... Ba6 {[%clk 0:02:56.7]} 11.
Qe4 {[%clk 0:02:48.4]} 11... g6 {[%clk 0:02:52.5]} 12. Be3 {[%clk 0:02:48]}
12... Bg7 {[%clk 0:02:51.2]} 13. Bxb6 {[%clk 0:02:48.3]} 13... cxb6 {[%clk
0:02:52.2]} 14. O-O-O {[%clk 0:02:49.8]} 14... O-O {[%clk 0:02:42]} 15. Qd4
{[%clk 0:02:50.4]} 15... Rfd8 {[%clk 0:02:41.4]} 16. Ne4 {[%clk 0:02:38.5]}
16... d5 {[%clk 0:02:27.2]} 17. Nf6+ {[%clk 0:02:32.6]} 17... Kh8 {[%clk
0:02:11.7]} 18. cxd5 {[%clk 0:02:22.3]} 18... cxd5 {[%clk 0:01:45.3]} 19. Bxa6
{[%clk 0:02:20.9]} 19... Rxa6 {[%clk 0:01:47.2]} 20. Nxd5 {[%clk 0:01:46.8]}
20... Qe6 {[%clk 0:01:47.8]} 21. Qe4 {[%clk 0:01:25.3]} 21... Rc8+ {[%clk
0:01:38.4]} 22. Kb1 {[%clk 0:01:21.9]} 22... b5 {[%clk 0:01:38.6]} 23. Rc1
{[%clk 0:01:13.5]} 23... Rac6 {[%clk 0:01:39.4]} 24. Rxc6 {[%clk 0:01:08.3]}
24... Qxc6 {[%clk 0:01:40.3]} 25. Nc3 {[%clk 0:01:04.5]} 25... Qb6 {[%clk
0:01:40.5]} 26. Rd1 {[%clk 0:00:59.9]} 26... b4 {[%clk 0:01:35.6]} 27. Nd5
{[%clk 0:00:59.1]} 27... Qc5 {[%clk 0:01:35.9]} 28. Ne3 {[%clk 0:00:50.4]} 28...
f6 {[%clk 0:01:29.7]} 29. e6 {[%clk 0:00:35.3]} 29... f5 {[%clk 0:00:53.2]} 30.
Qd3 {[%clk 0:00:32.7]} 30... a4 {[%clk 0:00:34.6]} 31. g3 {[%clk 0:00:26.8]}
31... a3 {[%clk 0:00:34.2]} 32. b3 {[%clk 0:00:16.6]} 32... Bb2 {[%clk
0:00:30.4]} 33. Nc4 {[%clk 0:00:17.8]} 33... Bf6 {[%clk 0:00:24.6]} 34. Qd7
{[%clk 0:00:15.9]} 34... Rd8 {[%clk 0:00:21.4]} 35. Qxd8+ {[%clk 0:00:16.2]}
35... Bxd8 {[%clk 0:00:22.5]} 36. Rxd8+ {[%clk 0:00:18.1]} 36... Kg7 {[%clk
0:00:23.6]} 37. Rd7+ {[%clk 0:00:18.9]} 37... Kf6 {[%clk 0:00:21.7]} 38. e7
{[%clk 0:00:19.9]} 38... Qg1+ {[%clk 0:00:21.4]} 39. Kc2 {[%clk 0:00:21.2]}
39... Qxh2+ {[%clk 0:00:21.6]} 40. Nd2 {[%clk 0:00:22.5]} 40... Qe2 {[%clk
0:00:21.8]} 41. Rb7 {[%clk 0:00:18.7]} 41... Qe6 {[%clk 0:00:20.2]} 42. Rxb4
{[%clk 0:00:19.3]} 42... Qxe7 {[%clk 0:00:21]} 43. Rc4 {[%clk 0:00:20.6]} 43...
h5 {[%clk 0:00:21.4]} 44. Rc3 {[%clk 0:00:21.8]} 44... g5 {[%clk 0:00:16.3]} 45.
fxg5+ {[%clk 0:00:22.4]} 45... Kxg5 {[%clk 0:00:18.2]} 46. Nf3+ {[%clk
0:00:23.7]} 46... Kg4 {[%clk 0:00:19.6]} 47. Nd4 {[%clk 0:00:24.8]} 47... Qe4+
{[%clk 0:00:19.5]} 48. Rd3 {[%clk 0:00:26.2]} 48... f4 {[%clk 0:00:20.3]} 49.
Ne2 {[%clk 0:00:26.6]} 49... Qxe2+ {[%clk 0:00:21]} 50. Kc3 {[%clk 0:00:27.8]}
50... Qxd3+ {[%clk 0:00:21.9]} 51. Kxd3 {[%clk 0:00:29.1]} 51... fxg3 {[%clk
0:00:23.8]} 52. b4 {[%clk 0:00:30.8]} 52... g2 {[%clk 0:00:25]} 53. b5 {[%clk
0:00:32.5]} 53... g1=Q {[%clk 0:00:26.5]} 54. Kc4 {[%clk 0:00:34.4]} 54... Qb6
{[%clk 0:00:27.6]} 0-1

[Event "*** MasterClass Titled Tuesday Blitz"]
[Site "Chess.com"]
[Date "2017.11.07"]
[Round "2"]
[White "chipmunknau"]
[Black "Robin-Side"]
[Result "1-0"]
[WhiteElo "2495"]
[BlackElo "2604"]
[TimeControl "180+2"]
[EndTime "14:30:32 PST"]
[Termination "chipmunknau won on time"]

1. Nf3 {[%clk 0:03:01.9]} 1... g6 {[%clk 0:03:01.9]} 2. g3 {[%clk 0:03:02.6]}
2... Bg7 {[%clk 0:02:57.7]} 3. Bg2 {[%clk 0:03:03.5]} 3... e5 {[%clk 0:02:59.2]}
4. O-O {[%clk 0:03:02.6]} 4... Ne7 {[%clk 0:03:00.3]} 5. d3 {[%clk 0:03:01.5]}
5... d5 {[%clk 0:03:01.2]} 6. c4 {[%clk 0:03:00.9]} 6... c6 {[%clk 0:02:59.7]}
7. cxd5 {[%clk 0:02:38.7]} 7... cxd5 {[%clk 0:03:01.6]} 8. Nc3 {[%clk 0:02:40]}
8... d4 {[%clk 0:02:58.4]} 9. Ne4 {[%clk 0:02:38.1]} 9... O-O {[%clk 0:02:58.2]}
10. Qb3 {[%clk 0:02:29]} 10... h6 {[%clk 0:02:43.2]} 11. Bd2 {[%clk 0:02:23.8]}
11... Nbc6 {[%clk 0:02:43.6]} 12. Rfc1 {[%clk 0:02:14.3]} 12... b6 {[%clk
0:02:19]} 13. Qa3 {[%clk 0:02:10.7]} 13... Be6 {[%clk 0:02:09.9]} 14. Nd6 {[%clk
0:02:01.3]} 14... Qd7 {[%clk 0:02:02.1]} 15. Rc2 {[%clk 0:01:32.1]} 15... Bd5
{[%clk 0:01:59.2]} 16. Rac1 {[%clk 0:01:20.7]} 16... Rfd8 {[%clk 0:01:58.7]} 17.
Nc4 {[%clk 0:01:20.4]} 17... Rac8 {[%clk 0:01:08.5]} 18. b4 {[%clk 0:01:18.1]}
18... b5 {[%clk 0:00:50.1]} 19. Na5 {[%clk 0:01:18.4]} 19... Nxa5 {[%clk
0:00:50.2]} 20. Qxa5 {[%clk 0:01:20.3]} 20... Rxc2 {[%clk 0:00:49.2]} 21. Rxc2
{[%clk 0:01:22.2]} 21... Rc8 {[%clk 0:00:42.7]} 22. Rc5 {[%clk 0:01:12.8]} 22...
Rxc5 {[%clk 0:00:31]} 23. bxc5 {[%clk 0:01:14.7]} 23... f6 {[%clk 0:00:19.7]}
24. Ne1 {[%clk 0:00:56.6]} 24... Bxg2 {[%clk 0:00:19.4]} 25. Nxg2 {[%clk
0:00:58.5]} 25... Bf8 {[%clk 0:00:18.4]} 26. Qa6 {[%clk 0:00:46.1]} 26... Nd5
{[%clk 0:00:17.2]} 27. c6 {[%clk 0:00:40.6]} 27... Qc7 {[%clk 0:00:08.9]} 28.
Ba5 {[%clk 0:00:24.8]} 28... Nb6 {[%clk 0:00:05.9]} 29. Qxb5 {[%clk 0:00:22.9]}
29... Kg7 {[%clk 0:00:07.2]} 30. Nh4 {[%clk 0:00:22.6]} 30... Bd6 {[%clk
0:00:07.3]} 31. Nf3 {[%clk 0:00:21.9]} 31... Qb8 {[%clk 0:00:06]} 32. Nd2 {[%clk
0:00:22.5]} 32... Bc7 {[%clk 0:00:06.8]} 33. Ne4 {[%clk 0:00:21.1]} 33... Qd8
{[%clk 0:00:06.4]} 34. Qb3 {[%clk 0:00:16]} 34... f5 {[%clk 0:00:04.7]} 35. Nc5
{[%clk 0:00:13.6]} 35... Qd6 {[%clk 0:00:05.9]} 36. Ne6+ {[%clk 0:00:11.6]}
36... Kf6 {[%clk 0:00:07.3]} 37. Nxc7 {[%clk 0:00:10.3]} 37... Qxc7 {[%clk
0:00:09.2]} 38. Qb5 {[%clk 0:00:09.5]} 38... Ke6 {[%clk 0:00:08.2]} 39. Bb4
{[%clk 0:00:10.2]} 39... Nd5 {[%clk 0:00:07.8]} 40. Bc5 {[%clk 0:00:11.5]} 40...
Ne7 {[%clk 0:00:06.4]} 41. Qc4+ {[%clk 0:00:09]} 41... Nd5 {[%clk 0:00:04.4]}
42. Bf8 {[%clk 0:00:07.3]} 1-0

[Event "*** MasterClass Titled Tuesday Blitz"]
[Site "Chess.com"]
[Date "2017.11.07"]
[Round "2"]
[White "chessdude"]
[Black "timator"]
[Result "1-0"]
[WhiteElo "2483"]
[BlackElo "2417"]
[TimeControl "180+2"]
[EndTime "14:30:37 PST"]
[Termination "chessdude won by resignation"]

1. e4 {[%clk 0:03:01.9]} 1... c5 {[%clk 0:02:46.5]} 2. Nf3 {[%clk 0:03:02.4]}
2... Nc6 {[%clk 0:02:47.5]} 3. Bb5 {[%clk 0:03:02.8]} 3... e6 {[%clk 0:02:48.4]}
4. O-O {[%clk 0:03:03.3]} 4... Nge7 {[%clk 0:02:49.2]} 5. d4 {[%clk 0:03:04.2]}
5... cxd4 {[%clk 0:02:47.6]} 6. Nxd4 {[%clk 0:03:06.1]} 6... Nxd4 {[%clk
0:02:46.2]} 7. Qxd4 {[%clk 0:03:06.5]} 7... a6 {[%clk 0:02:47.8]} 8. Be2 {[%clk
0:03:04.6]} 8... Nc6 {[%clk 0:02:48.2]} 9. Qe3 {[%clk 0:02:39.6]} 9... Be7
{[%clk 0:02:48.7]} 10. c4 {[%clk 0:02:40.6]} 10... O-O {[%clk 0:02:48.8]} 11.
Nc3 {[%clk 0:02:41.7]} 11... Qc7 {[%clk 0:02:41.4]} 12. Rd1 {[%clk 0:02:24.4]}
12... b6 {[%clk 0:02:42]} 13. Qg3 {[%clk 0:02:16.6]} 13... Qxg3 {[%clk
0:02:42.3]} 14. hxg3 {[%clk 0:02:18.5]} 14... f6 {[%clk 0:02:33.7]} 15. Be3
{[%clk 0:02:16.7]} 15... Rb8 {[%clk 0:02:33.8]} 16. Na4 {[%clk 0:02:01.5]} 16...
Bd8 {[%clk 0:02:11.4]} 17. Rac1 {[%clk 0:01:59.2]} 17... Bc7 {[%clk 0:02:12.2]}
18. b3 {[%clk 0:01:55.5]} 18... Kf7 {[%clk 0:02:10.6]} 19. c5 {[%clk 0:01:54.8]}
19... b5 {[%clk 0:02:11.2]} 20. Nb6 {[%clk 0:01:55.9]} 20... Ke7 {[%clk
0:02:09]} 21. a4 {[%clk 0:01:49.7]} 21... b4 {[%clk 0:01:55.3]} 22. Nc4 {[%clk
0:01:42.5]} 22... a5 {[%clk 0:01:52]} 23. Nd6 {[%clk 0:01:41.5]} 23... Bxd6
{[%clk 0:01:50.9]} 24. cxd6+ {[%clk 0:01:41.9]} 24... Kf7 {[%clk 0:01:50]} 25.
Bb5 {[%clk 0:01:32]} 25... Bb7 {[%clk 0:01:50.1]} 26. f3 {[%clk 0:01:28.4]}
26... h5 {[%clk 0:01:48.3]} 27. Bb6 {[%clk 0:01:27.8]} 27... Ra8 {[%clk
0:01:43.7]} 28. Kf2 {[%clk 0:01:23.9]} 28... Rfc8 {[%clk 0:01:33.9]} 29. Rc5
{[%clk 0:01:21.1]} 29... g6 {[%clk 0:01:28.5]} 30. Rdc1 {[%clk 0:01:21]} 30...
Ke8 {[%clk 0:01:25.8]} 31. Bxc6 {[%clk 0:01:15.8]} 31... Rxc6 {[%clk 0:01:14.6]}
32. Rxc6 {[%clk 0:01:16.8]} 32... dxc6 {[%clk 0:01:04.7]} 33. Rc5 {[%clk
0:01:13.4]} 33... Kd7 {[%clk 0:01:05.7]} 34. Bc7 {[%clk 0:01:14.6]} 34... e5
{[%clk 0:00:43.4]} 35. Ke3 {[%clk 0:01:13.4]} 35... Ke6 {[%clk 0:00:37.5]} 36.
f4 {[%clk 0:01:13.9]} 36... Ra6 {[%clk 0:00:33.9]} 37. fxe5 {[%clk 0:01:11.9]}
37... Bc8 {[%clk 0:00:30.1]} 38. exf6 {[%clk 0:01:09.3]} 38... Kxf6 {[%clk
0:00:32]} 39. Kf4 {[%clk 0:00:59.4]} 39... Be6 {[%clk 0:00:29.3]} 40. Rxa5
{[%clk 0:00:58.5]} 40... Rxa5 {[%clk 0:00:20]} 41. Bxa5 {[%clk 0:01:00.4]} 41...
g5+ {[%clk 0:00:20.5]} 42. Ke3 {[%clk 0:01:00.7]} 42... Bd7 {[%clk 0:00:15.9]}
43. Bxb4 {[%clk 0:01:01.2]} 43... Ke6 {[%clk 0:00:17.8]} 44. Bc5 {[%clk
0:01:02.1]} 44... Bc8 {[%clk 0:00:19.4]} 45. Kd4 {[%clk 0:00:42.3]} 45... Ba6
{[%clk 0:00:21.3]} 46. Bb4 {[%clk 0:00:40.9]} 46... Bf1 {[%clk 0:00:20.5]} 47.
Kc5 {[%clk 0:00:40.6]} 47... Kd7 {[%clk 0:00:21.5]} 48. Bd2 {[%clk 0:00:38.7]}
48... Bxg2 {[%clk 0:00:21.8]} 49. a5 {[%clk 0:00:24.3]} 49... Bf1 {[%clk
0:00:10.1]} 50. Bxg5 {[%clk 0:00:24.4]} 1-0

[Event "*** MasterClass Titled Tuesday Blitz"]
[Site "Chess.com"]
[Date "2017.11.07"]
[Round "2"]
[White "LawrenceTrent"]
[Black "gammagramma"]
[Result "0-1"]
[WhiteElo "2350"]
[BlackElo "2433"]
[TimeControl "180+2"]
[EndTime "14:30:45 PST"]
[Termination "gammagramma won by resignation"]

1. e4 {[%clk 0:03:01.9]} 1... Nc6 {[%clk 0:02:58.8]} 2. Nf3 {[%clk 0:03:02.7]}
2... d6 {[%clk 0:03:00]} 3. c3 {[%clk 0:03:02.5]} 3... Nf6 {[%clk 0:02:58.9]} 4.
d4 {[%clk 0:03:02.4]} 4... Bg4 {[%clk 0:02:59.7]} 5. h3 {[%clk 0:03:02.3]} 5...
Bh5 {[%clk 0:03:00.5]} 6. Bb5 {[%clk 0:03:00.6]} 6... a6 {[%clk 0:03:01.1]} 7.
Bxc6+ {[%clk 0:03:01.8]} 7... bxc6 {[%clk 0:03:03]} 8. Nbd2 {[%clk 0:03:01.7]}
8... e6 {[%clk 0:03:03.5]} 9. Qa4 {[%clk 0:03:01.5]} 9... Qd7 {[%clk 0:03:04.1]}
10. e5 {[%clk 0:03:03]} 10... Nd5 {[%clk 0:03:03.4]} 11. O-O {[%clk 0:03:03.5]}
11... Be7 {[%clk 0:03:03.7]} 12. Re1 {[%clk 0:03:00.3]} 12... O-O {[%clk
0:03:03.6]} 13. Qa5 {[%clk 0:02:53.5]} 13... Nf4 {[%clk 0:02:53.9]} 14. Re4
{[%clk 0:02:41.2]} 14... Bxf3 {[%clk 0:02:06.6]} 15. Rxf4 {[%clk 0:02:20.3]}
15... Be2 {[%clk 0:02:02.6]} 16. Ne4 {[%clk 0:02:14]} 16... dxe5 {[%clk
0:01:59.4]} 17. dxe5 {[%clk 0:02:02.2]} 17... Qd1+ {[%clk 0:02:00.1]} 18. Kh2
{[%clk 0:02:03.5]} 18... Qd5 {[%clk 0:02:01.5]} 19. Qxc7 {[%clk 0:01:50.9]}
19... Rfe8 {[%clk 0:02:00.6]} 20. c4 {[%clk 0:01:41.3]} 20... Bxc4 {[%clk
0:01:53.9]} 21. Nc3 {[%clk 0:01:38.9]} 21... Qd3 {[%clk 0:01:39.8]} 22. Be3
{[%clk 0:01:31.6]} 22... Rac8 {[%clk 0:01:39.7]} 23. Qa5 {[%clk 0:01:32.6]}
23... Bd5 {[%clk 0:01:27.5]} 24. Rd1 {[%clk 0:01:33.1]} 24... Qc2 {[%clk
0:01:28.4]} 25. Rd2 {[%clk 0:01:34]} 25... Qg6 {[%clk 0:01:28.6]} 26. Rg4 {[%clk
0:01:35.5]} 26... Qf5 {[%clk 0:01:26.7]} 27. Qxa6 {[%clk 0:01:21.1]} 27... h5
{[%clk 0:01:20.3]} 28. Rf4 {[%clk 0:01:15.5]} 28... Qxe5 {[%clk 0:01:20.9]} 29.
g3 {[%clk 0:00:44.1]} 29... Ra8 {[%clk 0:01:21]} 30. Qe2 {[%clk 0:00:44.1]}
30... Bg5 {[%clk 0:01:14]} 31. Ra4 {[%clk 0:00:25.1]} 31... Bxe3 {[%clk
0:01:13.7]} 32. Qxe3 {[%clk 0:00:26.2]} 32... Qxe3 {[%clk 0:01:12.2]} 33. fxe3
{[%clk 0:00:28.1]} 33... Rxa4 {[%clk 0:01:13.4]} 34. Nxa4 {[%clk 0:00:30]} 34...
Bxa2 {[%clk 0:01:14.4]} 35. Rd7 {[%clk 0:00:30.6]} 35... Rb8 {[%clk 0:01:10.7]}
36. g4 {[%clk 0:00:27]} 36... hxg4 {[%clk 0:01:11.2]} 37. hxg4 {[%clk
0:00:28.9]} 37... Rb4 {[%clk 0:01:12.3]} 38. Rd4 {[%clk 0:00:30.5]} 38... Rxd4
{[%clk 0:01:08.1]} 39. exd4 {[%clk 0:00:32.4]} 39... Kf8 {[%clk 0:01:05.4]} 40.
Kg3 {[%clk 0:00:33.5]} 40... g5 {[%clk 0:01:05.2]} 41. Nc5 {[%clk 0:00:33.4]}
41... Bd5 {[%clk 0:01:04.1]} 42. Nd7+ {[%clk 0:00:33.7]} 42... Ke7 {[%clk
0:01:04.6]} 43. Ne5 {[%clk 0:00:35]} 43... f6 {[%clk 0:01:05]} 44. Nd3 {[%clk
0:00:35.9]} 44... Kd6 {[%clk 0:01:04]} 45. Nc5 {[%clk 0:00:35.9]} 45... Bc4
{[%clk 0:00:59.5]} 46. Ne4+ {[%clk 0:00:36.7]} 46... Ke7 {[%clk 0:00:59.2]} 47.
Kf2 {[%clk 0:00:37.2]} 47... Bd5 {[%clk 0:00:58.6]} 48. Ng3 {[%clk 0:00:38.1]}
48... Bb3 {[%clk 0:00:52.5]} 49. Ke3 {[%clk 0:00:38.6]} 49... Bd1 {[%clk
0:00:52.2]} 50. Ne4 {[%clk 0:00:31.9]} 50... Bxg4 {[%clk 0:00:52]} 51. b4 {[%clk
0:00:33.8]} 51... Bh3 {[%clk 0:00:44.7]} 52. Kf2 {[%clk 0:00:30.7]} 52... Bf5
{[%clk 0:00:45.2]} 53. Nc5 {[%clk 0:00:31.4]} 53... Bc2 {[%clk 0:00:41.2]} 54.
Ke3 {[%clk 0:00:32.6]} 54... f5 {[%clk 0:00:42.2]} 55. Kd2 {[%clk 0:00:32.6]}
55... Bb1 {[%clk 0:00:43.4]} 56. Kc1 {[%clk 0:00:31]} 56... Ba2 {[%clk
0:00:44.2]} 57. Nd3 {[%clk 0:00:31.8]} 57... Bd5 {[%clk 0:00:44.1]} 58. Kd2
{[%clk 0:00:33.2]} 58... f4 {[%clk 0:00:41.9]} 59. Ne5 {[%clk 0:00:33.6]} 59...
Kf6 {[%clk 0:00:43]} 60. Kd3 {[%clk 0:00:35]} 60... Kf5 {[%clk 0:00:44.2]} 0-1